[Event "Titled Tuesday Blitz September 27 Early 2022"]
[White "Rose, Felix"]
[Black "Pourkashiyan, Atousa"]
[WhiteFideId "5105722"]
[BlackFideId "12502014"]
[WhiteElo "2039"]
[BlackElo "2247"]
[Result "0-1"]
[Round "11"]
[TimeControl "180+1"]
[Date "2022.09.27"]
[WhiteClock "0:00:01"]
[BlackClock "0:00:57"]

1. e4 {[%clk 0:03:00]}  c5 {[%clk 0:02:48]} 2. Nf3 {[%clk 0:03:00]}  e6 {[%clk 0:02:46]} 3. d4 {[%clk 0:03:00]}  cxd4 {[%clk 0:02:47]} 4. Nxd4 {[%clk 0:03:00]}  a6 {[%clk 0:02:46]} 5. c4 {[%clk 0:03:00]}  Nf6 {[%clk 0:02:39]} 6. Nc3 {[%clk 0:02:58]}  Bb4 {[%clk 0:02:29]} 7. Qd3 {[%clk 0:02:57]}  Qc7 {[%clk 0:02:26]} 8. Bd2 {[%clk 0:02:52]}  Nc6 {[%clk 0:02:17]} 9. Nxc6 {[%clk 0:02:47]}  dxc6 {[%clk 0:02:17]} 10. a3 {[%clk 0:02:46]}  Bc5 {[%clk 0:02:11]} 11. Qg3 {[%clk 0:02:42]}  Qxg3 {[%clk 0:02:04]} 12. hxg3 {[%clk 0:02:43]}  e5 {[%clk 0:02:03]} 13. f3 {[%clk 0:02:41]}  Be6 {[%clk 0:02:01]} 14. g4 {[%clk 0:02:40]}  O-O-O {[%clk 0:01:59]} 15. O-O-O {[%clk 0:02:32]}  h6 {[%clk 0:01:54]} 16. Be2 {[%clk 0:02:28]}  Nd7 {[%clk 0:01:54]} 17. g5 {[%clk 0:02:19]}  hxg5 {[%clk 0:01:52]} 18. Bxg5 {[%clk 0:02:19]}  f6 {[%clk 0:01:53]} 19. Bd2 {[%clk 0:02:15]}  Bd4 {[%clk 0:01:52]} 20. Kc2 {[%clk 0:02:10]}  Nb6 {[%clk 0:01:52]} 21. b3 {[%clk 0:02:00]}  Nd7 {[%clk 0:01:52]} 22. b4 {[%clk 0:01:26]}  Nb6 {[%clk 0:01:50]} 23. c5 {[%clk 0:01:24]}  Nc4 {[%clk 0:01:50]} 24. Bxc4 {[%clk 0:01:19]}  Bxc4 {[%clk 0:01:51]} 25. Na4 {[%clk 0:01:02]}  Kc7 {[%clk 0:01:47]} 26. Nb6 {[%clk 0:00:56]}  Be6 {[%clk 0:01:47]} 27. Bc3 {[%clk 0:00:56]}  Bxc3 {[%clk 0:01:42]} 28. Kxc3 {[%clk 0:00:55]}  Rxd1 {[%clk 0:01:38]} 29. Rxh8 {[%clk 0:00:36]}  Rc1+ {[%clk 0:01:31]} 30. Kd2 {[%clk 0:00:32]}  Rg1 {[%clk 0:01:31]} 31. g4 {[%clk 0:00:30]}  Ra1 {[%clk 0:01:31]} 32. Rh7 {[%clk 0:00:28]}  Ra2+ {[%clk 0:01:27]} 33. Ke1 {[%clk 0:00:28]}  Rxa3 {[%clk 0:01:26]} 34. Rxg7+ {[%clk 0:00:28]}  Kd8 {[%clk 0:01:27]} 35. Rxb7 {[%clk 0:00:26]}  Rxf3 {[%clk 0:01:24]} 36. Rb8+ {[%clk 0:00:17]}  Ke7 {[%clk 0:01:24]} 37. Rb7+ {[%clk 0:00:13]}  Kf8 {[%clk 0:01:23]} 38. Rc7 {[%clk 0:00:13]}  Rf4 {[%clk 0:01:22]} 39. Rxc6 {[%clk 0:00:12]}  Rxe4+ {[%clk 0:01:22]} 40. Kd2 {[%clk 0:00:11]}  Kf7 {[%clk 0:01:20]} 41. Kc3 {[%clk 0:00:10]}  Rxg4 {[%clk 0:01:18]} 42. Rc7+ {[%clk 0:00:08]}  Kg6 {[%clk 0:01:18]} 43. Re7 {[%clk 0:00:09]}  Bf5 {[%clk 0:01:15]} 44. c6 {[%clk 0:00:08]}  Rg1 {[%clk 0:01:14]} 45. Kb2 {[%clk 0:00:06]}  Rb1+ {[%clk 0:01:13]} 46. Ka2 {[%clk 0:00:06]}  Rxb4 {[%clk 0:01:12]} 47. Nd5 {[%clk 0:00:04]}  Rc4 {[%clk 0:01:11]} 48. Rc7 {[%clk 0:00:03]}  Be4 {[%clk 0:01:08]} 49. Ne7+ {[%clk 0:00:03]}  Kg5 {[%clk 0:01:08]} 50. Kb3 {[%clk 0:00:04]}  Rc1 {[%clk 0:01:07]} 51. Rc8 {[%clk 0:00:03]}  Kf4 {[%clk 0:01:00]} 52. c7 {[%clk 0:00:04]}  f5 {[%clk 0:01:01]} 53. Kb2 {[%clk 0:00:04]}  Rc5 {[%clk 0:01:00]} 54. Kb3 {[%clk 0:00:01]}  a5 {[%clk 0:01:00]} 55. Ka3 {[%clk 0:00:01]}  Rc4 {[%clk 0:00:58]} 56. Kb3 {[%clk 0:00:01]}  Rc1 {[%clk 0:00:57]} 0-1


[Site "https://www.chess.com"]

[Event "Titled Tuesday Blitz September 27 Early 2022"]
[White "Spalir, Monika"]
[Black "Roque Sola, Jose Luis"]
[WhiteFideId "14609118"]
[BlackFideId "5120390"]
[WhiteElo "2032"]
[BlackElo "1990"]
[Result "1-0"]
[Round "11"]
[TimeControl "180+1"]
[Date "2022.09.27"]
[WhiteClock "0:00:10"]
[BlackClock "0:00:10"]

1. d4 {[%clk 0:03:00]}  Nf6 {[%clk 0:02:58]} 2. c4 {[%clk 0:03:00]}  g6 {[%clk 0:02:57]} 3. Nc3 {[%clk 0:02:59]}  d5 {[%clk 0:02:57]} 4. cxd5 {[%clk 0:02:59]}  Nxd5 {[%clk 0:02:58]} 5. Bd2 {[%clk 0:02:59]}  Bg7 {[%clk 0:02:53]} 6. e4 {[%clk 0:02:58]}  Nxc3 {[%clk 0:02:53]} 7. Bxc3 {[%clk 0:02:57]}  O-O {[%clk 0:02:34]} 8. Nf3 {[%clk 0:02:49]}  Nd7 {[%clk 0:02:08]} 9. Qb3 {[%clk 0:02:18]}  Nf6 {[%clk 0:01:59]} 10. e5 {[%clk 0:02:01]}  Nd5 {[%clk 0:01:39]} 11. Bc4 {[%clk 0:02:00]}  Nxc3 {[%clk 0:01:39]} 12. bxc3 {[%clk 0:02:00]}  c6 {[%clk 0:01:24]} 13. a4 {[%clk 0:01:58]}  c5 {[%clk 0:01:04]} 14. O-O {[%clk 0:01:50]}  cxd4 {[%clk 0:01:03]} 15. cxd4 {[%clk 0:01:50]}  Bg4 {[%clk 0:00:57]} 16. Ng5 {[%clk 0:01:47]}  e6 {[%clk 0:00:49]} 17. Qe3 {[%clk 0:01:10]}  Rc8 {[%clk 0:00:42]} 18. Ba2 {[%clk 0:01:04]}  h6 {[%clk 0:00:34]} 19. Ne4 {[%clk 0:01:01]}  Bf5 {[%clk 0:00:34]} 20. Nd6 {[%clk 0:00:59]}  Rc2 {[%clk 0:00:32]} 21. h3 {[%clk 0:00:43]}  Qc7 {[%clk 0:00:28]} 22. g4 {[%clk 0:00:18]}  Rc3 {[%clk 0:00:28]} 23. Qd2 {[%clk 0:00:19]}  Bd3 {[%clk 0:00:27]} 24. Rfc1 {[%clk 0:00:18]}  Rxc1+ {[%clk 0:00:22]} 25. Rxc1 {[%clk 0:00:18]}  Qb6 {[%clk 0:00:20]} 26. Qxd3 {[%clk 0:00:17]}  Qb2 {[%clk 0:00:19]} 27. Rc2 {[%clk 0:00:15]}  Qa1+ {[%clk 0:00:19]} 28. Kg2 {[%clk 0:00:14]}  Bxe5 {[%clk 0:00:18]} 29. dxe5 {[%clk 0:00:13]}  Qxe5 {[%clk 0:00:18]} 30. Ne4 {[%clk 0:00:13]}  Qf4 {[%clk 0:00:17]} 31. Qf3 {[%clk 0:00:12]}  Qxf3+ {[%clk 0:00:17]} 32. Kxf3 {[%clk 0:00:13]}  Kg7 {[%clk 0:00:16]} 33. Rc7 {[%clk 0:00:12]}  Rb8 {[%clk 0:00:15]} 34. Nd6 {[%clk 0:00:12]}  Rf8 {[%clk 0:00:15]} 35. Nxb7 {[%clk 0:00:11]}  h5 {[%clk 0:00:14]} 36. a5 {[%clk 0:00:11]}  hxg4+ {[%clk 0:00:14]} 37. hxg4 {[%clk 0:00:12]}  Kg8 {[%clk 0:00:11]} 38. g5 {[%clk 0:00:12]}  Kg7 {[%clk 0:00:11]} 39. a6 {[%clk 0:00:11]}  Rd8 {[%clk 0:00:10]} 40. Nxd8 {[%clk 0:00:10]} 1-0


[Site "https://www.chess.com"]

[Event "Titled Tuesday Blitz September 27 Early 2022"]
[White "Sadilek, Peter"]
[Black "Ilkhomi, Jaloliddin"]
[WhiteFideId "1616439"]
[BlackFideId "14700948"]
[WhiteElo "2145"]
[BlackElo "1440"]
[Result "0-1"]
[Round "11"]
[TimeControl "180+1"]
[Date "2022.09.27"]
[WhiteClock "0:01:35"]
[BlackClock "0:02:29"]

1. d4 {[%clk 0:02:58]}  Nf6 {[%clk 0:02:57]} 2. c4 {[%clk 0:02:58]}  e6 {[%clk 0:02:58]} 3. Nf3 {[%clk 0:02:56]}  Bb4+ {[%clk 0:02:58]} 4. Nbd2 {[%clk 0:02:56]}  O-O {[%clk 0:02:57]} 5. g3 {[%clk 0:02:54]}  Ne4 {[%clk 0:02:58]} 6. Bg2 {[%clk 0:02:54]}  f5 {[%clk 0:02:58]} 7. O-O {[%clk 0:02:54]}  Bxd2 {[%clk 0:02:58]} 8. Nxd2 {[%clk 0:02:54]}  Nxd2 {[%clk 0:02:59]} 9. Qxd2 {[%clk 0:02:54]}  d5 {[%clk 0:02:58]} 10. b3 {[%clk 0:02:50]}  c6 {[%clk 0:02:58]} 11. Ba3 {[%clk 0:02:48]}  Rf7 {[%clk 0:02:56]} 12. e3 {[%clk 0:02:49]}  Nd7 {[%clk 0:02:57]} 13. Bd6 {[%clk 0:02:45]}  Nf6 {[%clk 0:02:57]} 14. Be5 {[%clk 0:02:45]}  Ng4 {[%clk 0:02:57]} 15. f4 {[%clk 0:02:43]}  b6 {[%clk 0:02:55]} 16. cxd5 {[%clk 0:02:41]}  cxd5 {[%clk 0:02:56]} 17. Rac1 {[%clk 0:02:39]}  Ba6 {[%clk 0:02:56]} 18. Rfd1 {[%clk 0:02:37]}  Nxe5 {[%clk 0:02:55]} 19. dxe5 {[%clk 0:02:35]}  Rc8 {[%clk 0:02:55]} 20. Qb4 {[%clk 0:02:28]}  Rfc7 {[%clk 0:02:54]} 21. Rxc7 {[%clk 0:02:26]}  Qxc7 {[%clk 0:02:55]} 22. Qd2 {[%clk 0:02:01]}  h6 {[%clk 0:02:48]} 23. h4 {[%clk 0:02:01]}  Qc2 {[%clk 0:02:43]} 24. Kf2 {[%clk 0:02:00]}  Bd3 {[%clk 0:02:36]} 25. Bf1 {[%clk 0:01:44]}  Bxf1 {[%clk 0:02:33]} 26. Kxf1 {[%clk 0:01:44]}  Qe4 {[%clk 0:02:33]} 27. Qg2 {[%clk 0:01:35]}  Qxe3 {[%clk 0:02:29]} 0-1


[Site "https://www.chess.com"]

[Event "Titled Tuesday Blitz September 27 Early 2022"]
[White "Sadykov, Ramil"]
[Black "Skliarov, Viktor"]
[WhiteFideId "24113590"]
[BlackFideId "14106736"]
[WhiteElo "2243"]
[BlackElo "2213"]
[Result "0-1"]
[Round "11"]
[TimeControl "180+1"]
[Date "2022.09.27"]
[WhiteClock "0:00:03"]
[BlackClock "0:00:05"]

1. c4 {[%clk 0:03:00]}  e5 {[%clk 0:02:57]} 2. Nc3 {[%clk 0:03:00]}  Bb4 {[%clk 0:02:57]} 3. d3 {[%clk 0:02:53]}  Bxc3+ {[%clk 0:02:54]} 4. bxc3 {[%clk 0:02:54]}  Nf6 {[%clk 0:02:55]} 5. g3 {[%clk 0:02:48]}  d5 {[%clk 0:02:42]} 6. Bg2 {[%clk 0:02:42]}  dxc4 {[%clk 0:02:16]} 7. Qa4+ {[%clk 0:02:42]}  Bd7 {[%clk 0:02:16]} 8. Qxc4 {[%clk 0:02:41]}  Bc6 {[%clk 0:02:17]} 9. Nf3 {[%clk 0:02:30]}  O-O {[%clk 0:02:11]} 10. O-O {[%clk 0:02:30]}  Nbd7 {[%clk 0:02:10]} 11. a4 {[%clk 0:02:20]}  e4 {[%clk 0:01:56]} 12. Nd4 {[%clk 0:02:17]}  Bd5 {[%clk 0:01:48]} 13. Qb5 {[%clk 0:02:09]}  a6 {[%clk 0:01:43]} 14. Qb2 {[%clk 0:01:59]}  exd3 {[%clk 0:01:42]} 15. exd3 {[%clk 0:02:00]}  Bxg2 {[%clk 0:01:34]} 16. Kxg2 {[%clk 0:02:01]}  Nc5 {[%clk 0:01:34]} 17. Rd1 {[%clk 0:01:47]}  Qd5+ {[%clk 0:01:31]} 18. Kg1 {[%clk 0:01:46]}  h5 {[%clk 0:01:14]} 19. Bf4 {[%clk 0:01:40]}  h4 {[%clk 0:01:07]} 20. c4 {[%clk 0:01:20]}  Qd7 {[%clk 0:01:04]} 21. Nf3 {[%clk 0:01:14]}  h3 {[%clk 0:00:55]} 22. Ne5 {[%clk 0:01:07]}  Qf5 {[%clk 0:00:49]} 23. d4 {[%clk 0:01:06]}  Ne6 {[%clk 0:00:44]} 24. Qb1 {[%clk 0:00:59]}  Qh5 {[%clk 0:00:44]} 25. Be3 {[%clk 0:00:42]}  Ng4 {[%clk 0:00:43]} 26. Nxg4 {[%clk 0:00:36]}  Qxg4 {[%clk 0:00:43]} 27. Qd3 {[%clk 0:00:36]}  Rad8 {[%clk 0:00:33]} 28. d5 {[%clk 0:00:37]}  Rfe8 {[%clk 0:00:20]} 29. Qf1 {[%clk 0:00:28]}  Nf8 {[%clk 0:00:13]} 30. Bf4 {[%clk 0:00:25]}  Rd7 {[%clk 0:00:11]} 31. Re1 {[%clk 0:00:22]}  Rde7 {[%clk 0:00:08]} 32. Bxc7 {[%clk 0:00:17]}  Qf3 {[%clk 0:00:04]} 33. Rxe7 {[%clk 0:00:15]}  Rxe7 {[%clk 0:00:04]} 34. Bd6 {[%clk 0:00:12]}  Re2 {[%clk 0:00:05]} 35. Bxf8 {[%clk 0:00:12]}  Kxf8 {[%clk 0:00:05]} 36. d6 {[%clk 0:00:07]}  g5 {[%clk 0:00:04]} 37. d7 {[%clk 0:00:06]}  Ke7 {[%clk 0:00:05]} 38. Rd1 {[%clk 0:00:06]}  Kd8 {[%clk 0:00:04]} 39. Rd4 {[%clk 0:00:02]}  g4 {[%clk 0:00:03]} 40. Rd1 {[%clk 0:00:02]}  Rxf2 {[%clk 0:00:03]} 41. Qxf2 {[%clk 0:00:02]}  Qxd1+ {[%clk 0:00:04]} 42. Qf1 {[%clk 0:00:03]}  Qxf1+ {[%clk 0:00:05]} 43. Kxf1 {[%clk 0:00:03]}  Kxd7 {[%clk 0:00:05]} 0-1


[Site "https://www.chess.com"]

[Event "Titled Tuesday Blitz September 27 Early 2022"]
[White "Sai Han Thiha"]
[Black "Murtazin, Ruslan"]
[WhiteFideId "13012290"]
[BlackFideId "24175960"]
[WhiteElo "1791"]
[BlackElo "2212"]
[Result "0-1"]
[Round "11"]
[TimeControl "180+1"]
[Date "2022.09.27"]
[WhiteClock "0:00:11"]
[BlackClock "0:00:15"]

1. d4 {[%clk 0:03:00]}  Nf6 {[%clk 0:02:59]} 2. c4 {[%clk 0:03:01]}  c5 {[%clk 0:02:59]} 3. d5 {[%clk 0:03:01]}  e6 {[%clk 0:03:00]} 4. Nc3 {[%clk 0:03:00]}  exd5 {[%clk 0:03:01]} 5. cxd5 {[%clk 0:03:01]}  d6 {[%clk 0:03:02]} 6. Nf3 {[%clk 0:03:01]}  g6 {[%clk 0:03:02]} 7. Nd2 {[%clk 0:03:01]}  Nbd7 {[%clk 0:03:02]} 8. e4 {[%clk 0:03:00]}  Bg7 {[%clk 0:03:02]} 9. Be2 {[%clk 0:03:01]}  O-O {[%clk 0:03:02]} 10. O-O {[%clk 0:03:01]}  a6 {[%clk 0:03:01]} 11. a4 {[%clk 0:03:01]}  Rb8 {[%clk 0:03:01]} 12. Re1 {[%clk 0:02:35]}  Ne8 {[%clk 0:03:00]} 13. Bf1 {[%clk 0:02:29]}  Nc7 {[%clk 0:03:00]} 14. Nc4 {[%clk 0:02:21]}  Ne5 {[%clk 0:02:56]} 15. Nb6 {[%clk 0:02:21]}  f5 {[%clk 0:02:47]} 16. Nxc8 {[%clk 0:02:07]}  Qxc8 {[%clk 0:02:47]} 17. exf5 {[%clk 0:02:00]}  Qxf5 {[%clk 0:02:46]} 18. f3 {[%clk 0:01:12]}  Rbe8 {[%clk 0:02:24]} 19. Be3 {[%clk 0:01:09]}  b5 {[%clk 0:01:04]} 20. axb5 {[%clk 0:01:06]}  Nxb5 {[%clk 0:01:02]} 21. Ne4 {[%clk 0:00:54]}  Nf7 {[%clk 0:00:22]} 22. Rxa6 {[%clk 0:00:36]}  Nc7 {[%clk 0:00:18]} 23. Nxd6 {[%clk 0:00:27]}  Nxd6 {[%clk 0:00:16]} 24. Rxd6 {[%clk 0:00:28]}  Rxe3 {[%clk 0:00:15]} 25. Rxe3 {[%clk 0:00:17]}  Bd4 {[%clk 0:00:16]} 26. Rd7 {[%clk 0:00:12]}  Bxe3+ {[%clk 0:00:15]} 27. Kh1 {[%clk 0:00:13]}  Qxd7 {[%clk 0:00:16]} 28. Qc1 {[%clk 0:00:11]}  Bxc1 {[%clk 0:00:15]} 0-1


[Site "https://www.chess.com"]

[Event "Titled Tuesday Blitz September 27 Early 2022"]
[White "Salman, Pavel"]
[Black "Vignesh, N R"]
[WhiteFideId "24153753"]
[BlackFideId "25012215"]
[WhiteElo "2039"]
[BlackElo "2363"]
[Result "0-1"]
[Round "11"]
[TimeControl "180+1"]
[Date "2022.09.27"]
[WhiteClock "0:00:02"]
[BlackClock "0:00:35"]

1. Nf3 {[%clk 0:03:00]}  Nf6 {[%clk 0:02:59]} 2. g3 {[%clk 0:03:00]}  g6 {[%clk 0:02:59]} 3. Bg2 {[%clk 0:03:00]}  Bg7 {[%clk 0:02:59]} 4. O-O {[%clk 0:03:01]}  O-O {[%clk 0:02:59]} 5. d3 {[%clk 0:03:02]}  c5 {[%clk 0:02:59]} 6. Nbd2 {[%clk 0:03:03]}  Nc6 {[%clk 0:02:58]} 7. e4 {[%clk 0:03:03]}  d6 {[%clk 0:02:58]} 8. c3 {[%clk 0:03:02]}  e5 {[%clk 0:02:56]} 9. a4 {[%clk 0:03:02]}  b6 {[%clk 0:02:55]} 10. Nc4 {[%clk 0:03:02]}  a6 {[%clk 0:02:55]} 11. Bg5 {[%clk 0:02:58]}  h6 {[%clk 0:02:53]} 12. Bd2 {[%clk 0:02:58]}  Rb8 {[%clk 0:02:52]} 13. h4 {[%clk 0:02:54]}  Re8 {[%clk 0:02:52]} 14. Ne3 {[%clk 0:02:46]}  b5 {[%clk 0:02:51]} 15. axb5 {[%clk 0:02:46]}  axb5 {[%clk 0:02:51]} 16. g4 {[%clk 0:02:40]}  h5 {[%clk 0:02:46]} 17. gxh5 {[%clk 0:02:37]}  Nxh5 {[%clk 0:02:46]} 18. Nd5 {[%clk 0:02:34]}  Be6 {[%clk 0:02:41]} 19. Ng5 {[%clk 0:02:29]}  Bxd5 {[%clk 0:02:40]} 20. exd5 {[%clk 0:02:30]}  Ne7 {[%clk 0:02:41]} 21. Ra7 {[%clk 0:02:24]}  Ra8 {[%clk 0:02:30]} 22. Qa1 {[%clk 0:01:54]}  Qb8 {[%clk 0:02:20]} 23. Ra3 {[%clk 0:01:27]}  Nf5 {[%clk 0:02:12]} 24. Ne4 {[%clk 0:01:21]}  Rxa3 {[%clk 0:02:10]} 25. Qxa3 {[%clk 0:01:20]}  Nxh4 {[%clk 0:02:10]} 26. Qa6 {[%clk 0:01:15]}  Nxg2 {[%clk 0:01:56]} 27. Kxg2 {[%clk 0:01:16]}  Rd8 {[%clk 0:01:57]} 28. Ra1 {[%clk 0:01:11]}  Qc7 {[%clk 0:01:40]} 29. Qxb5 {[%clk 0:01:02]}  Qc8 {[%clk 0:01:41]} 30. f3 {[%clk 0:00:59]}  Nf6 {[%clk 0:01:21]} 31. Qb6 {[%clk 0:00:54]}  Nxd5 {[%clk 0:01:19]} 32. Qb3 {[%clk 0:00:53]}  Nc7 {[%clk 0:01:00]} 33. Ra7 {[%clk 0:00:50]}  Ne6 {[%clk 0:00:58]} 34. Bg5 {[%clk 0:00:42]}  Rf8 {[%clk 0:00:55]} 35. Be7 {[%clk 0:00:28]}  Nf4+ {[%clk 0:00:54]} 36. Kf2 {[%clk 0:00:27]}  Nxd3+ {[%clk 0:00:54]} 37. Ke3 {[%clk 0:00:25]}  c4 {[%clk 0:00:54]} 38. Qb5 {[%clk 0:00:12]}  d5 {[%clk 0:00:49]} 39. Bxf8 {[%clk 0:00:10]}  dxe4 {[%clk 0:00:41]} 40. Bxg7 {[%clk 0:00:09]}  Qf5 {[%clk 0:00:39]} 41. Qe8+ {[%clk 0:00:05]}  Kxg7 {[%clk 0:00:38]} 42. Rxf7+ {[%clk 0:00:05]}  Qxf7 {[%clk 0:00:38]} 43. Qxf7+ {[%clk 0:00:05]}  Kxf7 {[%clk 0:00:39]} 44. Kxe4 {[%clk 0:00:06]}  Ke6 {[%clk 0:00:38]} 45. b4 {[%clk 0:00:05]}  Nf4 {[%clk 0:00:33]} 46. b5 {[%clk 0:00:04]}  Nd5 {[%clk 0:00:33]} 47. f4 {[%clk 0:00:02]}  Nxc3+ {[%clk 0:00:33]} 48. Ke3 {[%clk 0:00:02]}  Nxb5 {[%clk 0:00:34]} 49. fxe5 {[%clk 0:00:02]}  Kxe5 {[%clk 0:00:35]} 0-1


[Site "https://www.chess.com"]

[Event "Titled Tuesday Blitz September 27 Early 2022"]
[White "Samunenkov, Ihor"]
[Black "Zhigalko, Sergei"]
[WhiteFideId "14187086"]
[BlackFideId "13502956"]
[WhiteElo "2441"]
[BlackElo "2662"]
[Result "0-1"]
[Round "11"]
[TimeControl "180+1"]
[Date "2022.09.27"]
[WhiteClock "0:00:01"]
[BlackClock "0:00:04"]

1. d4 {[%clk 0:03:00]}  Nf6 {[%clk 0:02:59]} 2. c4 {[%clk 0:03:01]}  e6 {[%clk 0:03:00]} 3. Nf3 {[%clk 0:03:01]}  b6 {[%clk 0:03:00]} 4. g3 {[%clk 0:03:00]}  Ba6 {[%clk 0:03:00]} 5. Qa4 {[%clk 0:03:00]}  Bb7 {[%clk 0:02:59]} 6. Bg2 {[%clk 0:03:00]}  c5 {[%clk 0:02:59]} 7. dxc5 {[%clk 0:03:00]}  bxc5 {[%clk 0:02:58]} 8. O-O {[%clk 0:03:00]}  Be7 {[%clk 0:02:57]} 9. Nc3 {[%clk 0:03:00]}  O-O {[%clk 0:02:57]} 10. Rd1 {[%clk 0:03:00]}  Qb6 {[%clk 0:02:57]} 11. Qc2 {[%clk 0:02:54]}  Nc6 {[%clk 0:02:50]} 12. a3 {[%clk 0:02:50]}  Rac8 {[%clk 0:02:32]} 13. Na4 {[%clk 0:02:16]}  Qa6 {[%clk 0:02:24]} 14. Be3 {[%clk 0:02:04]}  Na5 {[%clk 0:02:09]} 15. Nd2 {[%clk 0:01:33]}  Bxg2 {[%clk 0:02:05]} 16. Kxg2 {[%clk 0:01:34]}  d5 {[%clk 0:01:55]} 17. cxd5 {[%clk 0:01:23]}  Nxd5 {[%clk 0:01:50]} 18. Bf4 {[%clk 0:01:23]}  Nxf4+ {[%clk 0:01:24]} 19. gxf4 {[%clk 0:01:23]}  Qxe2 {[%clk 0:01:25]} 20. Qe4 {[%clk 0:01:22]}  Qg4+ {[%clk 0:01:06]} 21. Kh1 {[%clk 0:01:21]}  Bd6 {[%clk 0:00:48]} 22. b4 {[%clk 0:01:02]}  cxb4 {[%clk 0:00:39]} 23. axb4 {[%clk 0:01:03]}  Nc6 {[%clk 0:00:38]} 24. b5 {[%clk 0:00:46]}  Nb4 {[%clk 0:00:29]} 25. Rab1 {[%clk 0:00:25]}  Nd5 {[%clk 0:00:27]} 26. Nc4 {[%clk 0:00:15]}  Bxf4 {[%clk 0:00:20]} 27. Rg1 {[%clk 0:00:15]}  Qh5 {[%clk 0:00:17]} 28. Rg2 {[%clk 0:00:13]}  g6 {[%clk 0:00:14]} 29. Na5 {[%clk 0:00:07]}  Qf5 {[%clk 0:00:07]} 30. Qxf5 {[%clk 0:00:06]}  exf5 {[%clk 0:00:08]} 31. Nc6 {[%clk 0:00:06]}  a6 {[%clk 0:00:09]} 32. Rd1 {[%clk 0:00:02]}  axb5 {[%clk 0:00:09]} 33. Rxd5 {[%clk 0:00:03]}  Rxc6 {[%clk 0:00:07]} 34. Rxb5 {[%clk 0:00:03]}  Ra8 {[%clk 0:00:06]} 35. Nc5 {[%clk 0:00:03]}  Ra1+ {[%clk 0:00:06]} 36. Rg1 {[%clk 0:00:03]}  Rxg1+ {[%clk 0:00:05]} 37. Kxg1 {[%clk 0:00:04]}  Kg7 {[%clk 0:00:05]} 38. Kg2 {[%clk 0:00:04]}  Bd6 {[%clk 0:00:04]} 39. Nd3 {[%clk 0:00:04]}  Rc3 {[%clk 0:00:04]} 40. Ne1 {[%clk 0:00:04]}  Rc5 {[%clk 0:00:03]} 41. Rb7 {[%clk 0:00:04]}  Rc7 {[%clk 0:00:03]} 42. Rb6 {[%clk 0:00:04]}  Bc5 {[%clk 0:00:03]} 43. Rb2 {[%clk 0:00:04]}  Bd4 {[%clk 0:00:03]} 44. Rd2 {[%clk 0:00:05]}  Bf6 {[%clk 0:00:03]} 45. Nf3 {[%clk 0:00:05]}  Rb7 {[%clk 0:00:03]} 46. Re2 {[%clk 0:00:05]}  Rb2 {[%clk 0:00:03]} 47. Re8 {[%clk 0:00:04]}  g5 {[%clk 0:00:04]} 48. h3 {[%clk 0:00:02]}  g4 {[%clk 0:00:04]} 49. hxg4 {[%clk 0:00:03]}  fxg4 {[%clk 0:00:05]} 50. Nh2 {[%clk 0:00:03]}  h5 {[%clk 0:00:05]} 51. Re4 {[%clk 0:00:02]}  Kg6 {[%clk 0:00:05]} 52. Rc4 {[%clk 0:00:02]}  Be5 {[%clk 0:00:04]} 53. Nf1 {[%clk 0:00:02]}  f5 {[%clk 0:00:03]} 54. Ne3 {[%clk 0:00:02]}  Rb5 {[%clk 0:00:03]} 55. Rc6+ {[%clk 0:00:02]}  Kg5 {[%clk 0:00:03]} 56. Rc8 {[%clk 0:00:03]}  f4 {[%clk 0:00:03]} 57. Rg8+ {[%clk 0:00:03]}  Kf6 {[%clk 0:00:03]} 58. Nc4 {[%clk 0:00:02]}  f3+ {[%clk 0:00:04]} 59. Kf1 {[%clk 0:00:01]}  Rb1# {[%clk 0:00:04]} 0-1


[Site "https://www.chess.com"]

[Event "Titled Tuesday Blitz September 27 Early 2022"]
[White "Sanchez, Robert"]
[Black "Broca Jimenez, Fernando"]
[WhiteFideId "2034360"]
[BlackFideId "5104742"]
[WhiteElo "2368"]
[BlackElo "2062"]
[Result "1-0"]
[Round "11"]
[TimeControl "180+1"]
[Date "2022.09.27"]
[WhiteClock "0:00:26"]
[BlackClock "0:00:28"]

1. e4 {[%clk 0:03:00]}  c5 {[%clk 0:02:58]} 2. d4 {[%clk 0:03:00]}  cxd4 {[%clk 0:02:58]} 3. c3 {[%clk 0:03:01]}  Nf6 {[%clk 0:02:58]} 4. e5 {[%clk 0:02:59]}  Nd5 {[%clk 0:02:59]} 5. Bc4 {[%clk 0:02:58]}  Nb6 {[%clk 0:02:58]} 6. Bb3 {[%clk 0:02:58]}  d5 {[%clk 0:02:58]} 7. cxd4 {[%clk 0:02:58]}  Nc6 {[%clk 0:02:55]} 8. h3 {[%clk 0:02:58]}  Bf5 {[%clk 0:02:55]} 9. Nf3 {[%clk 0:02:50]}  h6 {[%clk 0:02:55]} 10. O-O {[%clk 0:02:50]}  e6 {[%clk 0:02:56]} 11. Nc3 {[%clk 0:02:46]}  Be7 {[%clk 0:02:54]} 12. Be3 {[%clk 0:02:45]}  O-O {[%clk 0:02:53]} 13. Nh2 {[%clk 0:02:40]}  Rc8 {[%clk 0:02:49]} 14. g4 {[%clk 0:02:39]}  Bh7 {[%clk 0:02:48]} 15. f4 {[%clk 0:02:40]}  f6 {[%clk 0:02:43]} 16. Qe2 {[%clk 0:02:22]}  fxe5 {[%clk 0:02:38]} 17. fxe5 {[%clk 0:02:21]}  Bg5 {[%clk 0:02:20]} 18. Rxf8+ {[%clk 0:02:15]}  Kxf8 {[%clk 0:02:20]} 19. Nb5 {[%clk 0:02:05]}  Bxe3+ {[%clk 0:02:06]} 20. Qxe3 {[%clk 0:02:05]}  Kg8 {[%clk 0:02:05]} 21. Nd6 {[%clk 0:02:03]}  Rc7 {[%clk 0:02:06]} 22. Rf1 {[%clk 0:01:53]}  Nc8 {[%clk 0:02:02]} 23. Nxc8 {[%clk 0:01:33]}  Rxc8 {[%clk 0:01:43]} 24. Nf3 {[%clk 0:01:33]}  Be4 {[%clk 0:01:39]} 25. Nd2 {[%clk 0:01:26]}  Bg6 {[%clk 0:01:37]} 26. Nf3 {[%clk 0:01:17]}  Qb6 {[%clk 0:01:28]} 27. g5 {[%clk 0:01:11]}  hxg5 {[%clk 0:01:09]} 28. Qxg5 {[%clk 0:00:59]}  Nxd4 {[%clk 0:01:08]} 29. Kh2 {[%clk 0:00:48]}  Nxf3+ {[%clk 0:00:47]} 30. Rxf3 {[%clk 0:00:47]}  Bc2 {[%clk 0:00:47]} 31. Rg3 {[%clk 0:00:36]}  Qc7 {[%clk 0:00:40]} 32. Rc3 {[%clk 0:00:30]}  Qd8 {[%clk 0:00:31]} 33. Qxd8+ {[%clk 0:00:29]}  Rxd8 {[%clk 0:00:32]} 34. Bxc2 {[%clk 0:00:27]}  Rd7 {[%clk 0:00:31]} 35. Bg6 {[%clk 0:00:27]}  Kf8 {[%clk 0:00:31]} 36. Rc8+ {[%clk 0:00:26]}  Ke7 {[%clk 0:00:28]} 37. Re8# {[%clk 0:00:26]} 1-0


[Site "https://www.chess.com"]